Cogmind - Beta 9.1 @@@ ROGUE MODE // 2019.10.28 @ 23:00:06 Player: Logjam Result: Self-destructed Performance ------------- Evolutions (2) 1000 Regions Visited (4) 800 Robots Destroyed (46) 230 Value Destroyed (1085) 1085 Prototype IDs (3) 60 Alien Tech Used (0) 0 Bonus (133) 133 TOTAL SCORE: 3308 Bonus ------- High Alert Combat Kills 119 Follower Combat Kills 175 Friendly Fire -161 Cogmind --------- Core Integrity 550/550 Matter 170/300 Energy 99/100 System Corruption 0% Temperature Cool (0) Location -8/Materials Parts ------- Power (1) Propulsion (2) Improved Flight Unit Utility (6) Improved Heat Sink Weight Redist. System Advanced Sensor Array Propulsion Shielding Weapon (2) Inventory (4) Flight Unit Improved Heat Sink Peak State ------------ Power Light Nuclear Core Propulsion Flight Unit Improved Flight Unit Utility Improved Heat Sink Weight Redist. System Advanced Sensor Array Propulsion Shielding Weapon Light EM Pulse Cannon Rocket Launcher Inventory Light Ion Engine Flight Unit Improved Heat Sink [Rating: 20] Favorites ----------- Power Ion Engine Engine Ion Engine Power Core Light Nuclear Core Propulsion Aluminum Leg Leg Aluminum Leg Hover Unit Hover Unit Flight Unit Flight Unit Utility Weight Redist. System Device Weight Redist. System Storage Small Storage Unit Processor Seismic Analyzer Protection Medium Armor Plating Weapon EM Shotgun Energy Gun EM Shotgun Energy Cannon Light EM Pulse Cannon Ballistic Gun Assault Rifle Launcher Grenade Launcher Build | -11 -10 -10 -9 -8 ------- Run | Scr Mat Min Mat Mat Slots Evolved 4 | . . . 2 2 Power . | . . . . . Propulsion . | . . . . . Utility 4 | . . . 2 2 Weapon . | . . . . . Parts Attached 53 | 4 15 9 25 . Power 9 | . 3 1 5 . Engine 6 | . 3 . 3 . Core 3 | . . 1 2 . Reactor . | . . . . . Propulsion 12 | 2 2 6 2 . Treads . | . . . . . Leg 2 | 2 . . . . Wheel . | . . . . . Hover 3 | . 2 1 . . Flight 7 | . . 5 2 . Utility 16 | . 5 . 11 . Device 7 | . 3 . 4 . Storage 1 | . 1 . . . Processor 1 | . . . 1 . Hackware . | . . . . . Protection 7 | . 1 . 6 . Artifact . | . . . . . Weapon 16 | 2 5 2 7 . Energy Gun 4 | 1 3 . . . Energy Cannon 4 | . . . 4 . Ballistic Gun 4 | 1 2 1 . . Ballistic Cannon . | . . . . . Launcher 4 | . . 1 3 . Special Weapon . | . . . . . Impact Weapon . | . . . . . Slashing Weapon . | . . . . . Piercing Weapon . | . . . . . Special Melee Weapon . | . . . . . Unidentified Prototypes 3 | . . . 3 . Parts Lost 17 | . 4 5 8 . Power 3 | . 1 . 2 . Propulsion 5 | . 1 3 1 . Utility 4 | . 2 . 2 . Weapon 5 | . . 2 3 . Highest Loss Streak 5 | . 2 3 5 . Average Slot Usage (%) 84 | . 82 94 83 45 Engine 6 | . 8 7 . . Core 3 | . . 6 9 . Leg 8 | . 15 . . . Hover 6 | . 9 3 . . Flight 9 | . . 23 20 9 Device 18 | . 13 28 23 27 Storage 2 | . 3 . . . Protection 7 | . 6 . 16 9 Energy Gun 9 | . 13 9 . . Energy Cannon 1 | . . . 5 . Ballistic Gun 7 | . 9 9 . . Launcher 2 | . . 3 7 . Naked Turns . | . . . . . Heaviest Build 21 | 4 21 10 17 3 Greatest Support 20 | 20 20 18 16 3 Greatest Overweight (x) 3 | . 1 1 3 . Average Overweight (x) . | . . . . . Largest Inventory Capacity 6 | 4 6 4 4 4 Average Capacity 4 | 4 4 4 4 4 Most Carried 6 | 1 6 4 4 2 Average Carried 3 | . 3 3 3 2 Final Capacity 4 | . . . . 4 Final Carried 2 | . . . . 2 Class Distribution -------------------- 65% | Mutant 34% | Scavenger-Mutant Dominant Class ---------------- Mutant | -10/Materials Scavenger-Mutant | -10/Mines Scavenger-Mutant | -9/Materials Mutant | -8/Materials Resources | -11 -10 -10 -9 -8 ----------- Run | Scr Mat Min Mat Mat Matter Collected 1007 | 240 284 70 413 . Remotely . | . . . . . Salvage Created 1217 | . 438 156 623 . Parts 88 | . 16 19 53 . Haulers Intercepted 2 | . . . 2 . Recyclers Shooed 2 | . . . 2 . Parts Field Recycled . | . . . . . Retrieved Matter . | . . . . . Parts Self-Destructed . | . . . . . Prevented . | . . . . . Kills | -11 -10 -10 -9 -8 ------- Run | Scr Mat Min Mat Mat Combat Hostiles Destroyed 30 | . 9 7 14 . Guns 14 | . 7 7 . . Cannons 2 | . . . 2 . AOE 12 | . 1 . 11 . Classes Destroyed 9 | . 2 3 4 . Worker 1 | . . 1 . . Builder 5 | . . . 5 . Tunneler 2 | . . 1 1 . Hauler 2 | . . . 2 . Operator 1 | . . . 1 . Watcher 4 | . 3 . 1 . Swarmer 8 | . . 7 1 . Grunt 18 | . 9 . 9 . Sentry 4 | . . . 4 . Thug 1 | . . . 1 . Best Kill Streak 12 | . 3 5 12 . Combat Bots Only 6 | . 3 4 6 . Max Kills in Single Turn 4 | . 1 2 4 . Gunslinging . | . . . . . Exploded 2 | . 1 . 2 . Melee . | . . . . . Uniques/NPCs Destroyed . | . . . . . Combat | -11 -10 -10 -9 -8 -------- Run | Scr Mat Min Mat Mat Damage Taken 1614 | . 624 231 759 . Core 405 | . 115 52 238 . Absorbed by Shields . | . . . . . Core Remaining (%) 57 | 100 . 33 40 . Volleys Fired 119 | . 53 9 57 . Largest 2 | . 2 1 2 . Hottest 98 | . 65 45 98 . Shots Fired 134 | . 65 9 60 . Gun 74 | . 65 9 . . Cannon 30 | . . . 30 . Launcher 30 | . . . 30 . Special . | . . . . . Kinetic 24 | . 24 . . . Thermal 23 | . . . 23 . Explosive 30 | . . . 30 . Electromagnetic 57 | . 41 9 7 . Robot Hit Streak 11 | . 11 4 5 . Robot Miss Streak 4 | . 4 2 3 . Penetration Max . | . . . . . Secondary Targets . | . . . . . Shots Hit Robots 81 | . 50 9 22 . Core Hits 73 | . 22 11 40 . Critical Hits 4 | . 1 . 3 . Critical Kills 1 | . . . 1 . Critical Parts Destroyed 3 | . 1 . 2 . Melee Attacks . | . . . . . Impact . | . . . . . Slashing . | . . . . . Piercing . | . . . . . Sneak Attacks . | . . . . . Combat Hostiles . | . . . . . Follow-up Attacks . | . . . . . Damage Inflicted 2860 | . 855 122 1883 . Guns 868 | . 746 122 . . Cannons 345 | . . . 345 . Explosions 1646 | . 108 . 1538 . Melee . | . . . . . Ramming 1 | . 1 . . . Kinetic 161 | . 161 . . . Thermal 436 | . 108 . 328 . Explosive 1476 | . . . 1476 . Electromagnetic 786 | . 585 122 79 . Impact . | . . . . . Slashing . | . . . . . Piercing . | . . . . . Highest Corruption 3 | . . . 3 . Average Corruption 3 | . . . 3 . Corruption Purged . | . . . . . Effects 6 | . . . 6 . Message Errors 1 | . . . 1 . Matter Fused 1 | . . . 1 . Heat Flow Errors 1 | . . . 1 . Data Loss (minor) 1 | . . . 1 . Targeting Errors 1 | . . . 1 . Weapon Failures 1 | . . . 1 . Overload Shots . | . . . . . Overflow Damage 145 | . . . 145 . Projectiles 14 | . . . 14 . Explosions 131 | . . . 131 . Melee . | . . . . . Knockbacks . | . . . . . Impact . | . . . . . Kinetic . | . . . . . Secondary . | . . . . . Self-Inflicted Damage 235 | . 83 . 152 . Shots 6 | . 3 . 3 . Rammed . | . . . . . Targets Rammed 1 | . 1 . . . Kicked 1 | . 1 . . . Crushed . | . . . . . Highest Temperature 254 | . 158 31 254 . Average Temperature 49 | . 46 16 64 . Received Heat Transfer 576 | . 309 . 267 . Siege Activations . | . . . . . Robots Corrupted 2 | . 2 . . . Combat Hostiles 1 | . 1 . . . Parts Fried 8 | . 8 . . . Impact Corruptions . | . . . . . Robots Melted 1 | . . . 1 . Combat Hostiles 1 | . . . 1 . Parts Melted . | . . . . . Heat Transferred 731 | . 200 . 531 . Parts Sabotaged . | . . . . . Parts Stolen . | . . . . . Parts Stripped . | . . . . . Power Chain Reactions 3 | . 3 . . . Missiles Intercepted . | . . . . . Alert | -11 -10 -10 -9 -8 ------- Run | Scr Mat Min Mat Mat Peak Influence 810 | . 132 238 810 279 Average Influence 165 | . 38 153 512 279 Maximum Alert Level 3 | . . 1 3 1 Low Security (%) 69 | . . . . . Level 1 16 | . . . . . Level 2 6 | . . . . . Level 3 7 | . . . . . Level 4 . | . . . . . Level 5 . | . . . . . High Security . | . . . . . Max Security . | . . . . . Squads Dispatched 8 | . 2 . 6 . Investigation 2 | . 1 . 1 . Extermination . | . . . . . Reinforcement 6 | . 1 . 5 . Assault . | . . . . . Garrison . | . . . . . Intercept . | . . . . . Construction Impeded 1 | . . . 1 . Haulers Reinforced . | . . . . . Stealth | -11 -10 -10 -9 -8 --------- Run | Scr Mat Min Mat Mat Distress Signals 3 | . . . 2 1 Communications Jammed . | . . . . . Distress Signals . | . . . . . Times Spotted 74 | . 22 22 28 2 Peak Tracking Total 10 | . 3 10 5 4 Tactical Retreats 8 | . 4 3 1 . Traps | -11 -10 -10 -9 -8 ------- Run | Scr Mat Min Mat Mat Traps Triggered 1 | . 1 . . . Indirectly . | . . . . . Trap Hack Attempts . | . . . . . Triggered . | . . . . . Disarmed . | . . . . . Reprogrammed . | . . . . . Reused . | . . . . . Traps Extracted . | . . . . . Installed . | . . . . . Triggered 1 | . 1 . . . Machines | -11 -10 -10 -9 -8 ---------- Run | Scr Mat Min Mat Mat Machines Disabled 5 | . . . 5 . Max in Single Turn 2 | . . . 2 . Machines Sabotaged . | . . . . . Garrisons Compromised . | . . . . . Overloaded Fab Kills . | . . . . . Fab Network Shutdowns . | . . . . . Hacking | -11 -10 -10 -9 -8 --------- Run | Scr Mat Min Mat Mat Machines Accessed 5 | . 3 . 2 . Terminals 3 | . 2 . 1 . Fabricators . | . . . . . Repair Stations 1 | . . . 1 . Recycling Units 1 | . 1 . . . Scanalyzers . | . . . . . Garrison Access . | . . . . . Total Hacks 10 | . 6 . 4 . Successful 9 | . 6 . 3 . Failed 1 | . . . 1 . Catastrophic . | . . . . . Database Lockouts . | . . . . . Manual . | . . . . . Terminals 6 | . 5 . 1 . Fabricators . | . . . . . Repair Stations 3 | . . . 3 . Recycling Units 1 | . 1 . . . Scanalyzers . | . . . . . Garrison Access . | . . . . . Terminal Hacks 6 | . 5 . 1 . Record 5 | . 5 . . . Alert Level 1 | . . . 1 . Fabricator Hacks . | . . . . . Repair Station Hacks 2 | . . . 2 . Scan Component 1 | . . . 1 . Repair 1 | . . . 1 . Recycling Unit Hacks 1 | . 1 . . . Recycle Component 1 | . 1 . . . Scanalyzer . | . . . . . Garrison Access Hacks . | . . . . . Unauthorized Hacks . | . . . . . Terminals . | . . . . . Fabricators . | . . . . . Repair Stations . | . . . . . Recycling Units . | . . . . . Scanalyzers . | . . . . . Garrison Access . | . . . . . Data Cores Recovered . | . . . . . Used . | . . . . . Hacking Detections 4 | . 3 . 1 . Full Trace Events 2 | . 1 . 1 . Feedback Events . | . . . . . Feedback Blocked . | . . . . . Robot Schematics Acquired . | . . . . . Robots Built . | . . . . . Matter . | . . . . . Time . | . . . . . Total Robot Build Rating . | . . . . . Part Schematics Acquired . | . . . . . Parts Built . | . . . . . Matter . | . . . . . Time . | . . . . . Total Part Build Rating . | . . . . . Parts Repaired 1 | . . . 1 . Time 26 | . . . 26 . Parts Recycled 1 | . 1 . . . Recycled Matter . | . . . . . Retrieved Matter . | . . . . . Retrieved Components . | . . . . . Parts Scanalyzed . | . . . . . Part Schematics Acquired . | . . . . . Parts Damaged . | . . . . . Bothacking | -11 -10 -10 -9 -8 ------------ Run | Scr Mat Min Mat Mat Used RIF Installer . | . . . . . Robots Hacked . | . . . . . Non-combat . | . . . . . Combat . | . . . . . Robot Hacks Applied . | . . . . . Relay Couplers Released . | . . . . . Robots Rewired . | . . . . . Allies Hacked . | . . . . . Hacks Repelled . | . . . . . Allies | -11 -10 -10 -9 -8 -------- Run | Scr Mat Min Mat Mat Total Allies 4 | . . 4 . . Largest Group 3 | . . 3 1 . Highest-Rated Group 40 | . . 40 31 . Highest-Rated Ally 31 | . . 31 31 . Total Orders . | . . . . . Ally Attacks 40 | . . 12 28 . Total Damage 552 | . . 155 397 . Kills 12 | . . 4 8 . Allies Corrupted . | . . . . . Allies Melted . | . . . . . Intel | -11 -10 -10 -9 -8 ------- Run | Scr Mat Min Mat Mat Robot Analysis Total . | . . . . . Derelict Logs Recovered 1 | . . 1 . . Drone Launches . | . . . . . Drone Recoveries . | . . . . . Exploration | -11 -10 -10 -9 -8 ------------- Run | Scr Mat Min Mat Mat Turns Passed 2033 | 45 1142 377 446 23 Spaces Moved 2011 | 39 637 665 625 45 Core 72 | 11 . . 16 45 Treads . | . . . . . Legs 438 | 28 410 . . . Wheels . | . . . . . Hover 282 | . 227 55 . . Flight 1219 | . . 610 609 . Fastest Speed 34 | 50 56 37 34 50 Average Speed 59 | 100 99 39 37 50 Slowest Speed 200 | 120 150 120 200 50 Overloaded Moves . | . . . . . Propulsion Burnouts . | . . . . . Robots Hopped 14 | . . 3 11 . Cave-ins Triggered . | . . . . . Exploration Rate (%) 45 | 3 86 85 51 4 Regions Visited 4 Branch Regions 1 Pre-discovered Areas 1 | . . 1 . . Known Exits Taken . | . . . . . Unknown Exits Taken 4 | 1 1 1 1 . Scrap Searched 1 | . . 1 . . Spaces Dug . | . . . . . Terrain Destroyed 205 | . 6 . 199 . Melee . | . . . . . Projectile . | . . . . . AOE 205 | . 6 . 199 . Actions | -11 -10 -10 -9 -8 --------- Run | Scr Mat Min Mat Mat Total 2700 | 43 1082 767 763 45 Wait 478 | . 355 72 51 . Move 1983 | 38 636 659 605 45 Hop 10 | . . 2 8 . Pick Up 20 | 1 11 8 . . Fast Attach 34 | 4 9 3 18 . Attach 9 | . 2 2 5 . Detach 8 | . 2 1 5 . Swap 10 | . 4 4 2 . Drop 28 | . 9 7 12 . Fire 119 | . 53 9 57 . Melee . | . . . . . Ram . | . . . . . Kick 1 | . 1 . . . Crush . | . . . . . Escape Stasis . | . . . . . Rewire . | . . . . . Trap . | . . . . . Miscellaneous . | . . . . . Route ------- -11/Scrapyard -10/Materials (discovered 3 exits: *Mat / [*Min x2]) -10/Mines -9/Materials (discovered 3 exits: [*Mat x2] / [*Sto]) -8/Materials History --------- Turn | Location | Event 5 | -11/Scrapyard | Discovered new exit (range 16) 46 | -11/Scrapyard | Entered Materials 318 | -10/Materials | Build established: Mutant 414 | -10/Materials | Discovered new exit (range 6) 485 | -10/Materials | Discovered new exit (range 9) 788 | -10/Materials | Discovered new exit (range 16) 1188 | -10/Materials | Entered Mines 1231 | -10/Mines | Discovered new exit (range 10) 1299 | -10/Mines | Assisted by bots powering up and referring to "LRC-V3" 1345 | -10/Mines | Core integrity fell below 50% 1401 | -10/Mines | Found a hidden stash of uninstalled traps 1407 | -10/Mines | Assembled infested the area 1463 | -10/Mines | Escorted by a lone wolf Derelict 1485 | -10/Mines | Lost 3 parts (1n2w) 1565 | -10/Mines | Entered Materials 1565 | -9/Materials | Accompanied by 1 ally 1565 | -9/Materials | Evolved 2 slots: Utility x2 1665 | -9/Materials | Repaired Flight Unit 1787 | -9/Materials | Discovered new exit (range 14) 1904 | -9/Materials | Discovered new exit (range 10) 1939 | -9/Materials | Discovered new exit (range 15) 1985 | -9/Materials | Build established: Scavenger-Mutant 2007 | -9/Materials | Core integrity fell below 50% 2011 | -9/Materials | Entered another Materials area 2011 | -8/Materials | Evolved 2 slots: Utility x2 2034 | -8/Materials | Self-destructed Last Messages --------------- 01978_ G-34 Mercenary destroyed. 01978_ A-02 Transporter destroyed. 01985_ Fusion Modulator explodes. 01985_ Lgt. Nuclear Core destroyed. 01985_ Destroyed Lgt. Nuclear Core. 01985_ Lgt. EM Pulse Cannon destroyed. 01985_ Destroyed Lgt. EM Pulse Cannon. 01985_ Destroyed Aluminum Leg. 01985_ Terminal disabled. 01985_ Flight Unit destroyed. 01987_ Fusion Modulator explodes. 01994_ The unstable cave ceiling collapses. 02002_ Rocket Launcher destroyed. 02006_ Lgt. Ion Engine destroyed. 02008_ System corrupted: Heat flow error (+270). PARAMETERS=UTILITY_2 LOCATION=UNKNOWN GOAL=ESCAPE 02026_ W-25 Informer sends out distress signal. 02032_ T-07 Excavator is excavating. Map ----- +----------------------------------------------------+ | ?????????????????????????????????????????? | | ?????????????????????????????????????????? | | ?????????????????????????????????????????? | | ?????????????????????????????????????????? | | ?????????????????????????????????????????? | | ?????????????????????????????????????????? | | ?????????????????????????????????????????? | | ?????????????????????????????????????????? | | ?????????????????????????????????????????? | | ?????????????????????????????????????????? | | ?????????????????????????????????????????? | | ???????????????????? ????????????????????? | | ??????????????????" #???????????????????? | | ?????????????????? ???????????????????? | | ?????????????????? ???????????????????? | | ?????????????????? ???????????????????? | | ?????????????????? #???????????????????? | | ????????????????? #???????????????????? | | ??????????# ????? #???????????????????? | | ??????????# """ #???????????????????? | | ??????????# """"" #???????????????????? | | ??????????+ """"" #???????????????????? | | ??????????# """"" #???????????????????? | | ??????????# """ #???????????????????? | | ??????????# #???????????????????? | | ??????????# @ #???????????????????? | | ??????????######## #???????????????????? | | ?????????????????# #???????????????????? | | ?????????????????# ####????????????????? | | ?????????????????# # #????????????????? | | ?????????????????# #????????????????? | | ?????????????????# # #????????????????? | | ?????????????????# ####????????????????? | | ?????????????##### #??????????????????? | | ?????????????# ################## | | ?????????????# | | ?????????????# ########### | | ?????????????#########?????????# | | ???????????????????????????????#########+# | | ?????????????????????????????????????????? | | ?????????????????????????????????????????? | | ?????????????????????????????????????????? | | ?????????????????????????????????????????? | | ?????????????????????????????????????????? | | ?????????????????????????????????????????? | | ?????????????????????????????????????????? | | ?????????????????????????????????????????? | | ?????????????????????????????????????????? | | ?????????????????????????????????????????? | | ?????????????????????????????????????????? | +----------------------------------------------------+ Best States ------------- Heat Dissipation 56 Energy Generation 18 Energy Capacity 250 Matter Stores 300 Matter Capacity 300 Sight Range 16 Robot Scan Range 16 Terrain Scan Density 10 Additional Mass Support 6 Armor Coverage 225 Propulsion Shielding 33 Evasion (%) 63 Item Schematics ----------------- None Robot Schematics ------------------ None Fabricated ------------ Nothing Alien Tech Used ----------------- None Achievements -------------- Backstab Power Corrupts Slippery One Challenges ------------ None Game ------ Seed GaussMissileWell Manual? 0 Play Time 00:52:39 Cumulative 11.8 hours Start 2019.10.24 @ 02:41:26 End 2019.10.28 @ 23:00:06 Sessions 3 Manual Loads 0 Difficulty Rogue Special Mode None Game No. 19 Rogue 19 Adventurer 0 Explorer 0 Win Type - Total 0 Types 0/0/0/0/0/0/0 Lore% 6 Gallery% 16 Achievement% 13 Wizard Run 0 Options --------- ASCII 1 Keyboard 1 Movement Numpad Keybinds 0 Fullscreen 2 Font 18/Smallcaps Map View 76x50 Tactical HUD 1 Map Filters NONE Filters NONE Steam 1 RUN: 2eafd2c9-5f99-4016-b2db-4702f1ec0c8d